lending/lending_fUSD_20260204
["ID","MTS","AMOUNT","RATE_DAILY","PERIOD"]
[404490623,1770210640730,-202.08466483,0.00012013,2]
[404490624,1770210640739,-200.0,0.00012013,2]
[404490625,1770210640748,-500.0,0.00012013,2]
[404490626,1770210640757,-500.0,0.00012013,2]
[404490627,1770210640766,-500.0,0.00012013,2]
[404490628,1770210640775,-500.0,0.00012013,2]
[404490629,1770210640784,-500.0,0.00012013,2]
[404490630,1770210640793,-500.0,0.00012013,2]
[404490631,1770210640803,-500.0,0.00012013,2]
[404490632,1770210640812,-500.0,0.00012013,2]
[404490633,1770210640821,-500.0,0.00012013,2]
[404490634,1770210640830,-500.0,0.00012013,2]
[404490635,1770210640839,-500.0,0.00012013,2]
[404490636,1770210640851,-12890.6206,0.0001202,2]
[404490637,1770210640859,-1089.64825227,0.0001202,2]
[404490638,1770210640869,-866.0,0.00012058,2]
[404490639,1770210640878,-2361.0,0.00012058,2]
[404490640,1770210640887,-866.0,0.00012113,2]
[404490641,1770210640896,-2361.0,0.00012113,2]
[404490642,1770210640906,-1178.63534639,0.00012119,3]
[404490643,1770210640915,-1178.63534639,0.00012119,3]
[404490644,1770210640924,-866.0,0.00012168,2]
[404490645,1770210640933,-2361.0,0.00012168,2]
[404490646,1770210640943,-250.0,0.00012218,2]
[404490647,1770210640953,-866.0,0.00012223,2]
[404490648,1770210640963,-2361.0,0.00012223,2]
[404490649,1770210640972,-166.66,0.00012247,2]
[404490650,1770210640982,-866.0,0.00012277,2]
[404490651,1770210640991,-2361.0,0.00012277,2]
[404490652,1770210641004,-866.0,0.00012332,2]
[404490653,1770210641014,-2361.0,0.00012332,2]
[404490654,1770210641024,-866.0,0.00012387,2]
[404490655,1770210641033,-2361.0,0.00012387,2]
[404490656,1770210641043,-62461.34,0.00012414,2]
[404490657,1770210641053,-2101.39145655,0.00012421,2]
[404490658,1770210641062,-866.0,0.00012442,2]
[404490659,1770210641072,-2361.0,0.00012442,2]
[404490660,1770210641081,-866.0,0.00012497,2]
[404490661,1770210641092,-2361.0,0.00012497,2]
[404490662,1770210641102,-866.0,0.00012551,2]
[404490663,1770210641111,-2361.0,0.00012551,2]
[404490664,1770210641121,-500.0,0.00012561,2]
[404490665,1770210641130,-866.0,0.00012606,2]
[404490666,1770210641140,-2361.0,0.00012606,2]
[404490667,1770210641149,-255.0,0.00012616,2]
[404490668,1770210641158,-166.66,0.00012626,2]
[404490669,1770210641167,-1680.0,0.00012637,2]
[404490670,1770210641178,-250.0,0.00012638,2]
[404490671,1770210641187,-420.0,0.00012638,2]
[404490672,1770210641201,-866.0,0.00012661,2]
[404490673,1770210641211,-2361.0,0.00012661,2]
[404490674,1770210641220,-866.0,0.00012716,2]
[404490675,1770210641230,-2361.0,0.00012716,2]
[404490676,1770210641241,-866.0,0.00012771,2]
[404490677,1770210641250,-2361.0,0.00012771,2]
[404490678,1770210641259,-866.0,0.00012825,2]
[404490679,1770210641269,-2361.0,0.00012825,2]
[404490680,1770210641278,-1037.33659415,0.00012878,2]
[404490681,1770210641287,-866.0,0.0001288,2]
[404490682,1770210641297,-2361.0,0.0001288,2]
[404490683,1770210641306,-866.0,0.00012935,2]
[404490684,1770210641316,-2361.0,0.00012935,2]
[404490685,1770210641326,-169.62,0.00012959,2]
[404490686,1770210641335,-866.0,0.0001299,2]
[404490687,1770210641344,-2361.0,0.0001299,2]
[404490688,1770210641353,-166.66,0.00013006,2]
[404490689,1770210641366,-866.0,0.00013044,2]
[404490690,1770210641376,-2361.0,0.00013044,2]
[404490691,1770210641385,-235.78641937,0.00013075,2]
[404490692,1770210641395,-150.0,0.00013075,2]
[404490693,1770210641404,-150.0,0.00013075,2]
[404490694,1770210641413,-150.0,0.00013075,2]
[404490695,1770210641423,-150.0,0.00013075,2]
[404490696,1770210641432,-150.0,0.00013075,2]
[404490697,1770210641441,-150.0,0.00013075,2]
[404490698,1770210641451,-150.0,0.00013075,2]
[404490699,1770210641461,-8620.34576357,0.00013077,2]
[404490700,1770210641470,-886.29410051,0.00013099,2]
[404490701,1770210641480,-2373.22977838,0.00013099,2]
[404490702,1770210641490,-500.0,0.00013109,2]
[404490703,1770210641499,-150.0,0.0001313,2]
[404490704,1770210641508,-150.0,0.0001313,2]
[404490705,1770210641518,-150.0,0.0001313,2]
[404490706,1770210641527,-200.0,0.00013185,2]
[404490707,1770210641537,-200.0,0.00013185,2]
[404490708,1770210641547,-200.0,0.00013185,2]
[404490709,1770210641556,-211.84,0.00013199,2]
[404490710,1770210641568,-1000.0,0.00013224,2]
[404490711,1770210641578,-2101.39145655,0.00013334,2]
[404490712,1770210641588,-166.66,0.00013385,2]
[404490713,1770210641597,-949.57907636,0.00013415,2]
[404490714,1770210641606,-154.44018454,0.00013424,2]
[404490715,1770210641616,-500.0,0.00013424,2]
[404490716,1770210641626,-150.0,0.00013424,2]
[404490717,1770210641636,-150.0,0.00013424,2]
[404490718,1770210641646,-150.0,0.00013424,2]
[404490719,1770210641656,-150.0,0.00013424,2]
[404490720,1770210641667,-500.0,0.00013479,2]
[404490721,1770210641678,-150.0,0.00013479,2]
[404490722,1770210641689,-150.0,0.00013479,2]
[404490723,1770210641699,-150.0,0.00013479,2]
[404490724,1770210641710,-361.68385218,0.00013534,2]
[404490725,1770210641718,-183.0,0.00013534,2]
[404490726,1770210641727,-200.0,0.00013534,2]
[404490727,1770210641737,-200.0,0.00013534,2]
[404490728,1770210641747,-500.0,0.00013657,2]
[404490729,1770210641760,-549.35023034,0.00013698,2]
[404490730,1770210641770,-500.0,0.00013698,2]
[404490731,1770210641781,-500.0,0.00013698,2]
[404490732,1770210641792,-500.0,0.00013698,2]
[404490733,1770210641803,-500.0,0.00013698,2]
[404490734,1770210641813,-500.0,0.00013698,2]
[404490735,1770210641823,-392.76776902,0.00013698,2]
[404490736,1770210641833,-500.0,0.00013698,2]
[404490737,1770210641843,-500.0,0.00013698,2]
[404490738,1770210641853,-500.0,0.00013698,2]
[404490739,1770210641862,-500.0,0.00013698,2]
[404490740,1770210641871,-500.0,0.00013698,2]
[404490741,1770210641881,-500.0,0.00013698,2]
[404490742,1770210641891,-500.0,0.00013698,2]
[404490743,1770210641900,-500.0,0.00013698,2]
[404490744,1770210641909,-500.0,0.00013698,2]
[404490745,1770210641918,-341.82277216,0.00013698,2]
[404490746,1770210641927,-500.0,0.00013698,2]
[404490747,1770210641936,-500.0,0.00013698,2]
[404490748,1770210641945,-272.1278825,0.00013698,2]
[404490749,1770210641957,-500.0,0.00013698,2]
[404490750,1770210641967,-500.0,0.00013698,2]
[404490751,1770210641977,-500.0,0.00013698,2]
[404490752,1770210641987,-500.0,0.00013698,2]
[404490753,1770210641998,-500.0,0.00013698,2]
[404490754,1770210642008,-500.0,0.00013698,2]
[404490755,1770210642018,-623.75445386,0.00013698,2]
[404490756,1770210642028,-500.0,0.00013698,2]
[404490757,1770210642038,-500.0,0.00013698,2]
[404490758,1770210642050,-500.0,0.00013698,2]
[404490759,1770210642059,-500.0,0.00013698,2]
[404490760,1770210642070,-500.0,0.00013698,2]
[404490761,1770210642081,-500.0,0.00013698,2]
[404490762,1770210642092,-500.0,0.00013698,2]
[404490763,1770210642103,-500.0,0.00013698,2]
[404490764,1770210642113,-500.0,0.00013698,2]
[404490765,1770210642123,-500.0,0.00013698,2]
[404490766,1770210642132,-500.0,0.00013698,2]
[404490767,1770210642142,-500.0,0.00013698,2]
[404490768,1770210642154,-500.0,0.00013698,2]
[404490769,1770210642164,-500.0,0.00013698,2]
[404490770,1770210642174,-500.0,0.00013698,2]
[404490771,1770210642184,-500.0,0.00013698,2]
[404490773,1770210642193,-500.0,0.00013698,2]
[404490774,1770210642205,-500.0,0.00013698,2]
[404490775,1770210642215,-500.0,0.00013698,2]
[404490776,1770210642224,-500.0,0.00013698,2]
[404490777,1770210642235,-500.0,0.00013698,2]
[404490778,1770210642244,-500.0,0.00013698,2]
[404490779,1770210642254,-500.0,0.00013698,2]
[404490780,1770210642264,-500.0,0.00013698,2]
[404490781,1770210642275,-500.0,0.00013698,2]
[404490782,1770210642284,-500.0,0.00013698,2]
[404490783,1770210642293,-500.0,0.00013698,2]
[404490784,1770210642303,-500.0,0.00013698,2]
[404490785,1770210642312,-500.0,0.00013698,2]
[404490786,1770210642322,-500.0,0.00013698,2]
[404490787,1770210642333,-500.0,0.00013698,2]
[404490788,1770210642345,-500.0,0.00013698,2]
[404490789,1770210642355,-600.86,0.00013698,2]
[404490790,1770210642364,-521.96758579,0.00013698,2]
[404490791,1770210642374,-500.0,0.00013698,2]
[404490792,1770210642384,-500.0,0.00013698,2]
[404490793,1770210642395,-500.0,0.00013698,2]
[404490794,1770210642405,-500.0,0.00013698,2]
[404490795,1770210642415,-500.0,0.00013698,2]
[404490796,1770210642424,-500.0,0.00013698,2]
[404490797,1770210642434,-500.0,0.00013698,2]
[404490798,1770210642443,-500.0,0.00013698,2]
[404490799,1770210642453,-500.0,0.00013698,2]
[404490800,1770210642463,-508.28,0.00013698,2]
[404490801,1770210642472,-500.0,0.00013698,2]
[404490802,1770210642481,-500.0,0.00013698,2]
[404490803,1770210642491,-500.0,0.00013698,2]
[404490804,1770210642500,-500.0,0.00013698,2]
[404490805,1770210642509,-500.0,0.00013698,2]
[404490806,1770210642519,-500.0,0.00013698,2]
[404490807,1770210642528,-500.0,0.00013698,2]
[404490808,1770210642538,-500.0,0.00013698,2]
[404490809,1770210642547,-500.0,0.00013698,2]
[404490810,1770210642557,-500.0,0.00013698,2]
[404490811,1770210642567,-500.0,0.00013698,2]
[404490812,1770210642577,-500.0,0.00013698,2]
[404490813,1770210642586,-500.0,0.00013698,2]
[404490814,1770210642596,-248.79623194,0.00013698,2]
[404490815,1770210642606,-500.0,0.00013698,2]
[404490816,1770210642616,-500.0,0.00013698,2]
[404490817,1770210642626,-500.0,0.00013698,2]
[404490818,1770210642636,-500.0,0.00013698,2]
[404490819,1770210642647,-500.0,0.00013698,2]
[404490820,1770210642658,-500.0,0.00013698,2]
[404490821,1770210642669,-500.0,0.00013698,2]
[404490822,1770210642678,-500.0,0.00013698,2]
[404490823,1770210642689,-500.0,0.00013698,2]
[404490824,1770210642698,-500.0,0.00013698,2]
[404490825,1770210642707,-500.0,0.00013698,2]
[404490826,1770210642717,-500.0,0.00013698,2]
[404490827,1770210642726,-500.0,0.00013698,2]
[404490828,1770210642735,-201.21918147,0.00013698,2]
[404490829,1770210642744,-503.3149344,0.00013698,2]
[404490830,1770210642753,-500.0,0.00013698,2]
[404490831,1770210642763,-500.0,0.00013698,2]
[404490832,1770210642774,-500.0,0.00013698,2]
[404490833,1770210642783,-500.0,0.00013698,2]
[404490834,1770210642792,-500.0,0.00013698,2]
[404490835,1770210642802,-500.0,0.00013698,2]
[404490836,1770210642811,-500.0,0.00013698,2]
[404490837,1770210642820,-500.0,0.00013698,2]
[404490838,1770210642829,-500.0,0.00013698,2]
[404490839,1770210642839,-500.0,0.00013698,2]
[404490840,1770210642847,-500.0,0.00013698,2]
[404490841,1770210642857,-516.54058196,0.00013698,2]
[404490842,1770210642866,-647.4,0.00013698,2]
[404490843,1770210642875,-647.4,0.00013698,2]
[404490844,1770210642885,-647.4,0.00013698,2]
[404490845,1770210642895,-647.4,0.00013698,2]
[404490846,1770210642905,-647.4,0.00013698,2]
[404490847,1770210642915,-647.4,0.00013698,2]
[404490848,1770210642924,-647.4,0.00013698,2]
[404490849,1770210642935,-647.4,0.00013698,2]
[404490850,1770210642944,-647.4,0.00013698,2]
[404490851,1770210642954,-647.4,0.00013698,2]
[404490852,1770210642963,-647.4,0.00013698,2]
[404490854,1770210642973,-647.4,0.00013698,2]
[404490856,1770210642982,-647.4,0.00013698,2]
[404490858,1770210642992,-647.4,0.00013698,2]
[404490861,1770210643001,-647.4,0.00013698,2]
[404490863,1770210643010,-500.0,0.00013698,2]
[404490865,1770210643019,-500.0,0.00013698,2]
[404490866,1770210643029,-500.0,0.00013698,2]
[404490868,1770210643038,-500.0,0.00013698,2]
[404490870,1770210643052,-508.97591607,0.00013698,2]
[404490873,1770210643062,-500.0,0.00013698,2]
[404490874,1770210643071,-500.0,0.00013698,2]
[404490875,1770210643081,-245.91228722,0.00013698,2]
[404490876,1770210643090,-500.0,0.00013698,2]
[404490877,1770210643100,-500.0,0.00013698,2]
[404490878,1770210643109,-500.0,0.00013698,2]
[404490879,1770210643118,-500.0,0.00013698,2]
[404490880,1770210643129,-500.0,0.00013698,2]
[404490881,1770210643139,-500.0,0.00013698,2]
[404490882,1770210643148,-500.0,0.00013698,2]
[404490883,1770210643158,-500.0,0.00013698,2]
[404490884,1770210643167,-500.0,0.00013698,2]
[404490885,1770210643176,-500.0,0.00013698,2]
[404490886,1770210643186,-500.0,0.00013698,2]
[404490887,1770210643197,-500.0,0.00013698,2]
[404490888,1770210643209,-500.0,0.00013698,2]
[404490889,1770210643219,-500.0,0.00013698,2]
[404490890,1770210643228,-500.0,0.00013698,2]
[404490891,1770210643239,-500.0,0.00013698,2]
[404490892,1770210643248,-500.0,0.00013698,2]
[404490893,1770210643257,-403.2474264,0.00013698,2]
[404490894,1770210643268,-500.0,0.00013698,2]
[404490895,1770210643277,-500.0,0.00013698,2]
[404490896,1770210643287,-500.0,0.00013698,2]
[404490897,1770210643296,-500.0,0.00013698,2]
[404490898,1770210643305,-500.0,0.00013698,2]
[404490899,1770210643315,-513.21673603,0.00013698,2]
[404490900,1770210643325,-500.0,0.00013698,2]
[404490901,1770210643335,-500.0,0.00013698,2]
[404490902,1770210643345,-500.0,0.00013698,2]
[404490903,1770210643354,-500.0,0.00013698,2]
[404490904,1770210643363,-500.0,0.00013698,2]
[404490905,1770210643372,-500.0,0.00013698,2]
[404490906,1770210643381,-500.0,0.00013698,2]
[404490907,1770210643391,-500.0,0.00013698,2]
[404490908,1770210643401,-500.0,0.00013698,2]
[404490909,1770210643410,-500.0,0.00013698,2]
[404490910,1770210643419,-500.0,0.00013698,2]
[404490911,1770210643430,-500.0,0.00013698,2]
[404490912,1770210643439,-500.0,0.00013698,2]
[404490913,1770210643448,-500.0,0.00013698,2]
[404490914,1770210643457,-500.0,0.00013698,2]
[404490915,1770210643467,-500.0,0.00013698,2]
[404490916,1770210643476,-500.0,0.00013698,2]
[404490917,1770210643486,-500.0,0.00013698,2]
[404490918,1770210643495,-500.0,0.00013698,2]
[404490919,1770210643506,-500.0,0.00013698,2]
[404490920,1770210643515,-500.0,0.00013698,2]
[404490921,1770210643525,-500.0,0.00013698,2]
[404490922,1770210643535,-500.0,0.00013698,2]
[404490923,1770210643545,-500.0,0.00013698,2]
[404490924,1770210643555,-440.71331591,0.00013698,2]
[404490925,1770210643564,-500.0,0.00013698,2]
[404490926,1770210643574,-500.0,0.00013698,2]
[404490927,1770210643584,-500.0,0.00013698,2]
[404490928,1770210643595,-500.0,0.00013698,2]
[404490929,1770210643604,-500.0,0.00013698,2]
[404490930,1770210643614,-500.0,0.00013698,2]
[404490931,1770210643623,-500.0,0.00013698,2]
[404490932,1770210643632,-500.0,0.00013698,2]
[404490933,1770210643641,-500.0,0.00013698,2]
[404490934,1770210643651,-500.0,0.00013698,2]
[404490935,1770210643660,-500.0,0.00013698,2]
[404490936,1770210643668,-500.0,0.00013698,2]
[404490937,1770210643677,-500.0,0.00013698,2]
[404490938,1770210643686,-500.0,0.00013698,2]
[404490939,1770210643695,-500.0,0.00013698,2]
[404490940,1770210643704,-500.0,0.00013698,2]
[404490941,1770210643713,-500.0,0.00013698,2]
[404490942,1770210643723,-500.0,0.00013698,2]
[404490943,1770210643734,-344.36366875,0.00013698,2]
[404490944,1770210643744,-500.0,0.00013698,2]
[404490945,1770210643755,-500.0,0.00013698,2]
[404490946,1770210643765,-500.0,0.00013698,2]
[404490947,1770210643776,-500.0,0.00013698,2]
[404490948,1770210643786,-500.0,0.00013698,2]
[404490949,1770210643795,-500.0,0.00013698,2]
[404490950,1770210644003,-500.0,0.00013698,2]
[404490951,1770210644013,-500.0,0.00013698,2]
[404490952,1770210644023,-234.378992,0.00013698,2]
[404490953,1770210644032,-200.0,0.00013699,2]
[404490954,1770210644041,-773.56,0.00013699,2]
[404490955,1770210644050,-4711.72,0.000137,2]
[404490956,1770210644059,-4711.72,0.000137,2]
[404490957,1770210644068,-4711.72,0.000137,2]
[404490958,1770210644077,-4711.72,0.000137,2]
[404490959,1770210644086,-4711.72,0.000137,2]
[404490960,1770210644095,-433.0,0.00013771,2]
[404490961,1770210644104,-587.0,0.00013881,2]
[404490962,1770210644113,-1037.33659415,0.00013882,2]
[404490963,1770210644123,-2351.0,0.000139,2]
[404490964,1770210644132,-773.56,0.00013973,2]
[404490965,1770210644141,-250.0,0.00014247,5]
[404490966,1770210644151,-250.0,0.00014247,5]
[404490967,1770210644161,-250.0,0.00014247,5]
[404490968,1770210644172,-250.0,0.00014247,5]
[404490969,1770210644181,-250.0,0.00014247,5]
[404490970,1770210644192,-250.0,0.00014247,5]
[404490971,1770210644204,-250.0,0.00014247,5]
[404490972,1770210644215,-250.0,0.00014247,5]
[404490973,1770210644224,-250.0,0.00014247,5]
[404490974,1770210644235,-250.0,0.00014247,5]
[404490975,1770210644244,-250.0,0.00014247,5]
[404490976,1770210644253,-250.0,0.00014247,5]
[404490977,1770210644263,-250.0,0.00014247,5]
[404490978,1770210644273,-185.602916,0.00014247,5]
[404490979,1770210644283,-775.21,0.00014247,2]
[404490980,1770210644292,-2101.39145655,0.00014247,2]
[404490981,1770210644302,-500.0,0.000146,2]
[404490982,1770210644311,-568.24850317,0.000146,2]
[404490983,1770210644320,-500.0,0.000146,2]
[404490984,1770210644329,-500.0,0.000146,2]
[404490985,1770210644338,-438.12120673,0.000146,2]
[404490986,1770210644348,-500.0,0.000146,2]
[404490987,1770210644357,-501.46275829,0.000146,2]
[404490988,1770210644366,-500.0,0.000146,2]
[404490989,1770210644375,-500.43942892,0.000146,2]
[404490990,1770210644385,-500.0,0.000146,2]
[404490991,1770210644394,-500.0,0.000146,2]
[404490992,1770210644403,-500.0,0.000146,2]
[404490993,1770210644413,-500.0,0.000146,2]
[404490994,1770210644423,-500.0,0.000146,2]
[404490995,1770210644435,-500.0,0.000146,2]
[404490996,1770210644445,-422.32864224,0.000146,2]
[404490997,1770210644454,-500.0,0.000146,2]
[404490998,1770210644463,-500.0,0.000146,2]
[404490999,1770210644472,-500.6069839,0.000146,2]
[404491000,1770210644481,-500.0,0.000146,2]
[404491001,1770210644490,-500.0,0.000146,2]
[404491002,1770210644499,-500.35948587,0.000146,2]
[404491003,1770210644509,-500.0,0.000146,2]
[404491004,1770210644518,-500.0,0.000146,2]
[404491005,1770210644527,-500.0,0.000146,2]
[404491006,1770210644536,-207.06822891,0.000146,2]
[404491007,1770210644546,-416.21693956,0.0001462,2]
[404491008,1770210644556,-1098.40308869,0.0001462,2]
[404491009,1770210644567,-1937.71324632,0.0001462,2]
[404491010,1770210644577,-2898.70312948,0.0001462,2]
[404491011,1770210644587,-8620.34576357,0.00014665,2]
[404491012,1770210644596,-222.12664098,0.00014704,2]
[404491013,1770210644607,-442.65100811,0.00014704,2]
[404491014,1770210644616,-169.62,0.0001481,2]
[404491015,1770210644626,-153.0,0.00014826,2]
[404491016,1770210644636,-153.0,0.00014826,2]
[404491017,1770210644645,-153.0,0.00014826,2]
[404491018,1770210644654,-153.0,0.00014826,2]
[404491019,1770210644663,-245.3382658,0.00014826,2]
[404491020,1770210644673,-1000.0,0.00014877,2]
[404491021,1770210644682,-1037.33659415,0.00014887,2]
[404491022,1770210644691,-949.57907636,0.0001491,2]
[404491023,1770210644701,-250.0,0.00015,2]
[404491024,1770210644712,-10000.0,0.00015,2]
[404491025,1770210644721,-152.38,0.00015,2]
[404491026,1770210644730,-152.38,0.00015,2]
[404491027,1770210644739,-152.38,0.00015,2]
[404491028,1770210644748,-152.38,0.00015,2]
[404491029,1770210644758,-152.38,0.00015,2]
[404491030,1770210644767,-152.38,0.00015,2]
[404491031,1770210644777,-152.38,0.00015,2]
[404491032,1770210644786,-152.38,0.00015,2]
[404491033,1770210644795,-152.38,0.00015,2]
[404491034,1770210644805,-152.38,0.00015,2]
[404491035,1770210644817,-152.38,0.00015,2]
[404491036,1770210644826,-152.38,0.00015,2]
[404491037,1770210644835,-152.38,0.00015,2]
[404491038,1770210644845,-152.38,0.00015,2]
[404491039,1770210644855,-152.38,0.00015,2]
[404491040,1770210644865,-152.38,0.00015,2]
[404491041,1770210644875,-152.38,0.00015,2]
[404491042,1770210644884,-152.38,0.00015,2]
[404491044,1770210644893,-152.38,0.00015,2]
[404491045,1770210644903,-152.38,0.00015,2]
[404491046,1770210644912,-152.38,0.00015,2]
[404491047,1770210644922,-152.38,0.00015,2]
[404491048,1770210644931,-152.38,0.00015,2]
[404491049,1770210644940,-152.38,0.00015,2]
[404491050,1770210644950,-152.38,0.00015,2]
[404491051,1770210644960,-152.38,0.00015,2]
[404491052,1770210644969,-152.38,0.00015,2]
[404491053,1770210644979,-152.38,0.00015,2]
[404491054,1770210644988,-152.38,0.00015,2]
[404491055,1770210644998,-152.38,0.00015,2]
[404491056,1770210645008,-152.38,0.00015,2]
[404491057,1770210645018,-152.38,0.00015,2]
[404491058,1770210645027,-152.38,0.00015,2]
[404491059,1770210645036,-152.38,0.00015,2]
[404491060,1770210645045,-152.38,0.00015,2]
[404491061,1770210645055,-736.0,0.00015042,2]
[404491062,1770210645064,-1000.0,0.00015148,2]
[404491063,1770210645073,-1009.49329008,0.00015148,2]
[404491064,1770210645083,-1000.0,0.00015148,2]
[404491065,1770210645092,-1000.0,0.00015148,2]
[404491066,1770210645101,-728.46930276,0.00015148,2]
[404491067,1770210645112,-500.0,0.00015148,2]
[404491068,1770210645121,-1000.0,0.00015148,2]
[404491069,1770210645130,-1004.53493259,0.00015148,2]
[404491070,1770210645139,-1000.0,0.00015148,2]
[404491071,1770210645150,-1000.0,0.00015148,2]
[404491072,1770210645160,-1115.98913176,0.00015148,2]
[404491073,1770210645170,-796.55427389,0.00015148,2]
[404491074,1770210645180,-722.13817411,0.00015148,2]
[404491075,1770210645190,-654.35091807,0.00015148,2]
[404491076,1770210645203,-509.90234857,0.00015148,2]
[404491077,1770210645212,-246.68559216,0.00015148,2]
[404491078,1770210645221,-615.04992732,0.00015148,2]
[404491079,1770210645231,-2101.39145655,0.00015161,2]
[404491080,1770210645241,-250.0,0.00015181,2]
[404491081,1770210645250,-823.0,0.00015246,2]
[404491082,1770210645259,-3292.0,0.00015291,2]
[404491084,1770210645269,-322.6107,0.00015626,2]
[404491085,1770210645279,-174.61919141,0.00015626,2]
[404491086,1770210645289,-500.0,0.00015626,2]
[404491087,1770210645299,-500.0,0.00015626,2]
[404491088,1770210645308,-500.0,0.00015626,2]
[404491089,1770210645320,-500.0,0.00015626,2]
[404491091,1770210645329,-500.0,0.00015626,2]
[404491092,1770210645339,-500.0,0.00015626,2]
[404491093,1770210645348,-209.40437684,0.00015626,2]
[404491094,1770210645358,-500.0,0.00015626,2]
[404491095,1770210645367,-500.0,0.00015626,2]
[404491096,1770210645376,-500.0,0.00015626,2]
[404491097,1770210645386,-500.0,0.00015626,2]
[404491098,1770210645395,-626.10481314,0.00015626,2]
[404491099,1770210645404,-150.0,0.00015675,7]
[404491100,1770210645413,-233.059338,0.00015675,7]
[404491101,1770210645422,-316.118676,0.00015675,7]
[404491102,1770210645431,-399.178014,0.00015675,7]
[404491103,1770210645440,-482.237353,0.00015675,7]
[404491104,1770210645449,-565.296691,0.00015675,7]
[404491105,1770210645458,-648.356029,0.00015675,7]
[404491106,1770210645469,-731.415368,0.00015675,7]
[404491107,1770210645478,-814.474706,0.00015675,7]
[404491108,1770210645487,-897.534044,0.00015675,7]
[404491109,1770210645496,-217.15233878,0.00015681,2]
[404491110,1770210645505,-1500.0,0.00015696,2]
[404491111,1770210645515,-1586.3781423,0.00015696,2]
[404491112,1770210645524,-702.75959751,0.00015696,2]
[404491113,1770210645533,-1500.0,0.00015696,2]
[404491114,1770210645543,-1500.0,0.00015696,2]
[404491115,1770210645552,-1500.0,0.00015696,2]
[404491116,1770210645561,-225.18697532,0.00015736,2]
[404491117,1770210645570,-233.51889341,0.00015791,2]
[404491118,1770210645581,-647.4,0.00015815,2]
[404491119,1770210645591,-1000.0,0.00015835,2]
[404491120,1770210645602,-242.15909246,0.00015846,2]
[404491121,1770210645612,-1037.33659415,0.00015891,2]
[404491122,1770210645621,-251.11897888,0.00015901,2]
[404491123,1770210645630,-260.4103811,0.00015956,2]
[404491124,1770210645639,-1317.0,0.00015978,2]
[404491125,1770210645648,-2476.46,0.00015978,2]
[404491126,1770210645658,-3253.0,0.00015978,2]
[404491127,1770210645668,-6580.0,0.00015978,2]
[404491128,1770210645678,-270.0455652,0.00016011,2]
[404491129,1770210645687,-280.03725112,0.00016066,2]
[404491130,1770210645697,-2101.39145655,0.00016074,2]
[404491131,1770210645706,-290.39862941,0.00016121,2]
[404491132,1770210645715,-211.84,0.00016132,2]
[404491133,1770210645725,-181.08010149,0.00016174,2]
[404491134,1770210645735,-301.1433787,0.00016176,2]
[404491135,1770210645745,-500.0,0.00016244,2]
[404491136,1770210645754,-2000.0,0.00016244,2]
[404491137,1770210645763,-2000.0,0.00016244,2]